bitfinex/quotes_ETHUSD_20241223
["timestamp","ask_amount","ask_price","bid_price","bid_amount"]
[1734964873101,3.01923,3312.1,3310.9,0.8076]
[1734964873303,3.01923,3312.1,3309.8,3.71377707]
[1734964873304,3.01943,3311.9,3309.8,0.7837]
[1734964873503,3.01882,3312.6,3310.2,0.7837]
[1734964873754,3.32718739,3313.8,3311.5,3.01971]
[1734964873755,0.7908,3313.5,3311.5,3.01971]
[1734964873931,3.01859,3312.8,3311.6,0.7837]
[1734964874116,3.01777,3313.8,3311.6,0.7837]
[1734964874315,3.01804,3313.4,3311.6,3.80337]
[1734964874520,3.01834,3313.1,3311.9,3.01941]
[1734964874737,3.01826,3313.2,3311.8,0.7837]
[1734964875047,3.01826,3313.2,3312.1,0.59363589]
[1734964875406,3.01833,3313.1,3311.8,0.7837]
[1734964875616,3.0181,3313.4,3311.9,0.380328]
[1734964875822,3.01844,3313.0,3311.8,1.40383533]
[1734964876040,3.01923,3312.1,3311.8,0.7837]
[1734964876253,0.7908,3313.5,3311.8,0.7837]
[1734964876254,3.01893,3312.5,3311.8,0.7837]
[1734964876409,0.7908,3313.5,3311.8,0.7837]
[1734964876811,3.01897,3312.4,3311.8,0.7837]
[1734964877013,3.01877,3312.6,3311.9,0.02855558]
[1734964877216,3.01824,3313.2,3311.9,0.02855558]
[1734964877413,0.301824,3313.1,3311.9,0.02855558]
[1734964877617,3.01859,3312.8,3312.0,0.02863115]
[1734964877911,3.01859,3312.8,3311.8,0.7837]
[1734964877912,3.0,3314.0,3311.8,0.7837]
[1734964878112,3.01805,3313.4,3312.1,0.02860309]
[1734964878312,3.01805,3313.4,3311.8,0.7837]
[1734964878531,3.01792,3313.6,3312.2,0.02857503]
[1734964878727,3.01795,3313.5,3311.9,3.4081601]
[1734964878953,3.01765,3313.9,3312.5,3.0188]
[1734964879249,3.01636,3315.3,3313.3,0.7596]
[1734964879457,0.30691666,3315.4,3313.3,0.7596]
[1734964879952,3.0165,3315.1,3313.4,0.03011178]
[1734964880106,3.01761,3313.9,3313.4,0.03011178]
[1734964880304,3.01721,3314.4,3313.4,0.03011178]
[1734964880524,3.0176,3313.9,3313.4,0.03011178]
[1734964880745,0.301721,3314.3,3313.3,0.7596]
[1734964880908,3.01868,3312.7,3312.6,0.7596]
[1734964881107,3.10380104,3314.0,3311.6,0.8154]
[1734964881307,3.0,3314.1,3312.1,0.8154]
[1734964881503,3.0187,3312.7,3312.1,0.8154]
[1734964881765,3.0,3314.1,3312.2,0.03190942]
[1734964881945,6.01768,3313.8,3312.2,0.03190942]
[1734964882110,3.0188,3312.6,3312.1,0.8154]
[1734964882309,3.01906,3312.3,3312.1,0.8154]
[1734964882558,3.01914,3312.2,3312.1,0.8154]
[1734964882862,3.01859,3312.9,3310.8,0.7826]
[1734964883160,3.01917,3312.2,3312.1,0.0319418]
[1734964883361,0.301859,3312.8,3311.1,0.03019472]
[1734964883504,3.01813,3313.3,3311.0,0.7826]
[1734964883704,3.01897,3312.4,3311.2,3.05219328]
[1734964883954,3.01786,3313.6,3311.3,0.8206]
[1734964884187,3.01833,3313.1,3311.4,0.8507909]
[1734964884496,3.01867,3312.8,3311.7,0.8206]
[1734964884695,3.01867,3312.8,3311.7,3.84014]
[1734964884982,3.01867,3312.8,3311.8,0.03470885]
[1734964885193,3.01831,3313.2,3312.0,0.7712]
[1734964885374,3.01805,3313.4,3312.0,0.7712]
[1734964885537,3.01805,3313.4,3312.1,0.03460362]
[1734964885538,3.01839,3313.1,3312.1,0.03460362]
[1734964885739,3.02048,3310.8,3309.8,0.03019869]
[1734964885973,3.02095,3310.3,3309.2,3.10380104]
[1734964886171,3.02095,3310.3,3308.4,1.2326003]
[1734964886172,3.02095,3310.3,3308.7,6.12607104]
[1734964886483,3.02036,3310.9,3309.3,3.02175]
[1734964886701,3.02036,3310.9,3309.2,0.59734345]
[1734964886702,3.02089,3310.3,3309.2,0.59734345]
[1734964886994,3.02117,3310.0,3308.9,3.02215]
[1734964887194,3.02069,3310.5,3309.2,3.02178]
[1734964887487,3.02092,3310.3,3309.3,0.302178]
[1734964887900,3.01996,3311.3,3309.3,0.302178]
[1734964888048,3.02076,3310.5,3309.3,3.323948]
[1734964888249,0.7915,3311.7,3309.4,0.03021021]
[1734964888561,3.0204,3310.9,3309.3,3.05198863]
[1734964888762,3.01997,3311.3,3310.2,0.0657]
[1734964888961,3.02,3311.3,3310.2,0.0657]
[1734964889144,3.02005,3311.2,3310.2,0.0657]
[1734964889345,3.01988,3311.4,3310.2,3.08664]
[1734964889590,3.02005,3311.2,3310.2,0.0657]
[1734964889792,0.81,3312.2,3310.2,0.0657]
[1734964889793,0.81,3312.2,3310.2,0.374383]
[1734964890096,3.02026,3311.0,3310.2,0.0657]
[1734964890311,3.02059,3310.7,3310.2,0.0657]
[1734964890598,3.02061,3310.6,3310.2,0.0657]
[1734964890794,3.02142,3309.7,3309.6,0.0657]
[1734964890943,3.0219,3309.2,3308.3,0.0657]
[1734964891143,3.02087,3310.3,3308.3,0.0657]
[1734964891386,0.302087,3310.2,3308.3,0.0657]
[1734964891689,9.06369,3309.9,3308.3,0.0657]
[1734964891840,3.02123,3309.9,3308.3,0.0657]
[1734964892046,3.02205,3309.1,3308.3,0.0657]
[1734964892273,3.02179,3309.3,3308.3,0.0657]
[1734964892473,3.02196,3309.2,3308.3,0.0657]
[1734964892674,0.7842,3310.0,3308.3,0.0657]
[1734964892880,3.02245,3308.6,3308.3,0.0657]
[1734964893492,0.302245,3308.6,3307.8,0.0657]
[1734964893798,3.02114,3310.0,3307.8,0.0657]
[1734964893939,3.02148,3309.7,3308.4,0.0657]
[1734964894143,3.10380104,3310.6,3308.6,3.02238]
[1734964894144,3.0,3310.6,3308.6,3.02238]
[1734964894345,3.79838,3310.7,3308.4,0.0657]
[1734964894346,1.22766663,3310.4,3308.4,0.0657]
[1734964894597,3.02137,3309.8,3308.8,0.0657]
[1734964894748,3.02113,3310.1,3308.8,0.0657]
[1734964895101,3.02104,3310.2,3308.9,0.03002184]
[1734964895248,3.62989966,3310.3,3308.8,0.0657]
[1734964895449,1.22766663,3310.4,3308.8,0.0657]
[1734964895808,3.01994,3311.4,3309.5,0.0657]
[1734964895947,3.02117,3310.0,3309.5,0.0657]
[1734964896273,3.02151,3309.6,3309.5,0.0657]
[1734964896479,3.0214,3309.8,3309.5,0.0657]
[1734964896879,6.02041,3310.8,3309.5,0.0657]
[1734964897079,3.02086,3310.4,3309.5,0.0657]
[1734964897282,0.602041,3310.7,3309.5,0.0657]
[1734964897593,3.02152,3309.6,3308.4,0.0657]
[1734964897794,3.02078,3310.4,3308.7,0.59648845]
[1734964897991,3.02155,3309.6,3308.7,0.59648845]
[1734964898192,0.602041,3310.7,3308.8,0.0657]
[1734964898396,3.02116,3310.0,3308.8,3.08793]
[1734964898601,3.02124,3309.9,3308.8,0.0657]
[1734964898896,3.02092,3310.3,3308.9,3.08784]
[1734964899063,3.02092,3310.3,3308.9,0.0657]
[1734964899268,3.02046,3310.8,3309.0,0.0657]
[1734964899504,4.24769663,3311.3,3309.3,0.0657]
[1734964899505,3.02005,3311.2,3309.3,0.0657]
[1734964899708,3.02058,3310.7,3309.3,3.0874]
[1734964900000,3.0207,3310.5,3309.9,0.0657]
[1734964900182,3.0208,3310.4,3309.4,0.0657]
[1734964900497,3.02082,3310.4,3309.4,0.0657]
[1734964900703,3.0216,3309.5,3309.4,0.0657]
[1734964901002,0.302082,3310.4,3307.8,0.0657]
[1734964901198,3.02099,3310.2,3308.5,0.0657]
[1734964901353,3.02135,3309.8,3308.5,3.0225]
[1734964901555,3.0205,3310.7,3308.6,0.09591577]
[1734964901762,3.02089,3310.3,3308.8,0.0657]
[1734964901961,4.24780663,3311.1,3309.0,3.02197]
[1734964901962,3.02097,3310.2,3309.0,3.02197]
[1734964902205,3.02023,3311.0,3309.0,3.02197]
[1734964902206,3.02023,3311.0,3309.2,0.0657]
[1734964902410,3.0206,3310.6,3309.4,0.0657]
[1734964902553,3.0206,3310.6,3309.4,3.08736]
[1734964902756,2.64899995,3311.3,3309.4,3.08736]
[1734964902757,3.02036,3310.9,3309.6,3.02149]
[1734964903046,3.02047,3310.8,3309.7,0.0657]
[1734964903221,3.02047,3310.8,3309.7,0.1127174]
[1734964903549,0.302047,3310.8,3309.7,0.1127174]
[1734964903750,3.02132,3309.9,3309.7,0.1127174]
[1734964903957,3.02133,3309.8,3309.7,0.1127174]
[1734964904122,3.02133,3309.8,3309.7,0.0470174]
[1734964904461,0.302047,3310.8,3309.7,0.0470174]
[1734964904762,3.02062,3310.6,3309.7,0.0470174]
[1734964905050,1.22766663,3311.5,3309.8,0.0657]
[1734964905237,1.22766663,3311.5,3310.1,0.0657]
[1734964905433,1.22766663,3311.9,3310.1,0.0657]
[1734964905605,1.22766663,3311.9,3310.4,3.02071]
[1734964905800,1.22766663,3311.9,3310.5,0.367771]
[1734964905998,1.22766663,3311.9,3310.5,0.302071]
[1734964906247,1.22766663,3311.9,3311.4,0.0657]
[1734964906451,3.01977,3311.5,3311.4,0.0657]
[1734964906771,3.01984,3311.5,3310.5,0.0657]
[1734964906940,3.01958,3311.8,3310.5,0.0657]
[1734964907142,3.01958,3311.8,3310.6,3.02058]
[1734964907358,3.0193,3312.1,3310.7,0.367758]
[1734964907521,3.01979,3311.5,3310.8,0.0657]
[1734964907722,3.01955,3311.8,3310.8,0.0657]
[1734964908038,9.05685,3312.4,3310.8,0.0657]
[1734964908241,1.208458,3312.7,3310.8,0.0657]
[1734964908476,3.0196,3311.7,3310.8,0.0657]
[1734964908879,1.208458,3312.7,3312.6,3.08447]
[1734964909175,2.45496659,3313.4,3313.2,0.0657]
[1734964909380,3.68299991,3313.6,3313.3,3.01805]
[1734964909584,3.68299991,3313.6,3313.2,3.16950104]
[1734964909780,3.68299991,3313.6,3313.5,3.08365]
[1734964910381,3.61729991,3313.6,3313.5,3.08365]
[1734964910585,4.29683323,3313.9,3313.8,3.01768]
[1734964910887,0.8068,3316.4,3313.8,3.01768]
[1734964911052,0.8068,3316.4,3314.2,3.10380104]
[1734964911053,3.82217,3316.4,3314.2,3.10380104]
[1734964911252,3.01559,3316.1,3314.8,3.01676]
[1734964911473,3.01549,3316.2,3314.8,3.01676]
[1734964911670,0.382217,3316.3,3314.5,0.03016004]
[1734964911874,3.01561,3316.1,3314.7,3.01679]
[1734964912183,0.80680323,3316.9,3314.8,3.01673]
[1734964912393,3.01555,3316.2,3314.9,3.01667]
[1734964912588,3.01571,3316.0,3314.6,3.01688]
[1734964912770,0.8068,3316.9,3314.6,3.01688]
[1734964913088,1.207223,3316.2,3314.7,3.37752492]
[1734964913384,3.01595,3315.8,3314.7,0.36066492]
[1734964913587,3.82166,3316.9,3314.5,0.58976922]
[1734964913588,0.8068,3316.9,3315.0,3.01651]
[1734964913883,3.01551,3316.2,3314.8,3.04685671]
[1734964914088,3.01573,3316.0,3314.6,3.04709673]
[1734964914284,3.01573,3316.0,3314.7,3.01684]
[1734964914487,3.01546,3316.3,3314.8,3.04691909]
[1734964914689,3.01501,3316.8,3314.8,0.03015909]
[1734964914888,3.0153,3316.5,3315.1,3.01648]
[1734964915195,6.83175,3317.4,3314.7,0.3636766]
[1734964915196,1.207051,3316.7,3315.2,0.03015565]
[1734964915365,3.01513,3316.6,3315.2,3.01638]
[1734964915559,3.316643,3316.6,3315.3,0.60445453]
[1734964915759,1.20698,3317.1,3315.5,3.01611]
[1734964915977,3.01449,3317.3,3315.5,3.04626292]
[1734964916173,0.7739,3317.9,3315.5,0.03015292]
[1734964916487,3.51309732,3318.9,3314.2,3.01731]
[1734964916488,0.7739,3317.2,3314.2,3.01731]
[1734964916690,3.01542,3316.3,3314.5,3.01704]
[1734964916873,3.01542,3316.3,3314.6,0.33487663]
[1734964917094,3.01542,3316.3,3315.0,3.01658]
[1734964917396,3.01559,3316.1,3314.8,3.65131102]
[1734964917561,3.0,3316.9,3314.9,0.03015694]
[1734964917896,3.01502,3316.8,3315.6,3.016]
[1734964918062,3.01477,3317.0,3315.6,3.016]
[1734964918266,1.206846,3317.3,3315.6,3.016]
[1734964918267,3.01497,3316.8,3315.6,3.016]
[1734964918462,0.301477,3316.9,3315.0,0.03015194]
[1734964918805,4.221416,3317.3,3315.2,3.01636]
[1734964918977,3.01547,3316.3,3315.0,0.03015194]
[1734964919295,0.7739,3316.9,3314.4,3.0171]
[1734964919503,0.7739,3316.9,3314.4,3.01709]
[1734964919504,3.01539,3316.4,3314.4,3.01709]
[1734964919648,3.01513,3316.6,3314.4,3.01709]
[1734964919848,3.01597,3315.7,3314.4,3.41062059]
[1734964920048,3.01597,3315.7,3314.4,0.39353059]
[1734964920275,3.01606,3315.6,3314.4,0.03016214]
[1734964920492,3.01531,3316.4,3314.0,0.6103126]
[1734964920690,0.301513,3316.5,3314.9,3.01659]
[1734964921480,0.301513,3316.5,3314.0,0.6103126]
[1734964921850,3.01518,3316.6,3314.4,3.01706]
[1734964921988,3.01554,3316.2,3314.4,3.01706]
[1734964922334,3.01614,3315.5,3314.3,3.01718]
[1734964922725,0.7649,3316.0,3313.3,0.3169501]
[1734964922901,3.0,3315.9,3313.1,0.61200389]
[1734964923102,0.03017251,3315.8,3313.1,0.14100635]
[1734964923303,0.7649,3316.0,3314.4,3.0171]
[1734964923505,0.7649,3316.0,3313.2,3.86427565]
[1734964923506,3.0154,3316.3,3313.4,0.03016325]
[1734964923689,3.01559,3316.1,3314.3,3.61926779]
[1734964923894,3.01658,3315.1,3313.9,3.01753]
[1734964924188,0.301559,3316.0,3314.0,0.03016306]
[1734964924395,0.03017251,3316.2,3313.3,3.03016394]
[1734964924588,0.7919,3316.1,3312.6,3.86427565]
[1734964924789,3.01595,3315.7,3313.1,0.59962126]
[1734964924994,3.01622,3315.5,3313.3,3.01813]
[1734964925194,3.01622,3315.5,3313.5,3.01795]
[1734964925412,3.01622,3315.5,3314.3,3.01722]
[1734964925609,3.01633,3315.3,3314.1,3.01739]
[1734964926010,3.01568,3316.0,3314.1,0.03016315]
[1734964926208,0.03017251,3315.9,3313.6,3.01783]
[1734964926410,0.03017251,3315.9,3313.3,3.0]
[1734964926411,3.01613,3315.5,3313.3,0.61243665]
[1734964926612,3.01686,3314.8,3313.5,3.01794]
[1734964926828,3.01628,3315.4,3313.6,0.03016963]
[1734964927049,3.01628,3315.4,3314.1,3.01736]
[1734964927256,3.01595,3315.7,3314.2,0.03016454]
[1734964927542,3.04621251,3315.6,3313.4,3.03016044]
[1734964927844,0.03017251,3315.5,3312.3,3.01905]
[1734964928072,3.01686,3314.7,3313.0,3.01836]
[1734964928343,179.9999955,3315.0,3313.1,0.03016976]
[1734964928643,179.9999955,3315.0,3313.1,3.04840976]
[1734964928644,0.03017251,3314.9,3313.1,3.04840976]
[1734964928846,3.79638131,3314.8,3311.7,1.23986768]
[1734964929019,3.03017251,3314.7,3312.2,0.61443077]
[1734964929360,3.01814,3313.3,3312.2,3.63350077]
[1734964929546,3.01741,3314.1,3311.7,1.23986768]
[1734964929728,0.38543825,3314.1,3312.3,0.03018096]
[1734964929917,0.8068,3314.3,3312.3,0.03018096]
[1734964929918,3.01794,3313.6,3312.3,3.01901]
[1734964930094,3.01755,3314.0,3312.3,3.01901]
[1734964930444,3.8241,3314.3,3312.3,3.01901]
[1734964930445,3.01806,3313.4,3312.3,3.01901]
[1734964930614,3.8241,3314.3,3312.1,0.59098475]
[1734964930615,3.01731,3314.2,3312.1,0.59098475]
[1734964930795,3.01774,3313.8,3312.1,3.64038661]
[1734964930997,3.01814,3313.3,3312.2,0.36403866]
[1734964931233,0.301774,3313.7,3312.2,0.36403866]
[1734964931446,3.01809,3313.4,3312.2,3.0191]
[1734964931614,3.01814,3313.3,3312.2,3.0191]
[1734964932221,0.8068,3314.3,3312.1,0.59098475]
[1734964932548,0.03017251,3314.2,3312.1,0.59098475]
[1734964932699,3.0,3314.0,3310.9,0.03018724]
[1734964932904,3.01851,3312.9,3311.8,3.01948]
[1734964933163,6.03536,3313.8,3311.6,3.01967]
[1734964933361,3.01859,3312.9,3311.4,0.03018727]
[1734964933563,3.01802,3313.5,3312.2,3.01913]
[1734964933731,0.37604,3313.9,3311.8,0.60970816]
[1734964933732,3.0176,3313.9,3312.8,3.01859]
[1734964933934,0.8158,3314.5,3312.2,3.01912]
[1734964933935,3.01809,3313.4,3312.2,3.01912]
[1734964934138,0.03017251,3314.1,3312.3,0.301912]
[1734964934332,0.03017251,3314.1,3311.8,3.01941]
[1734964934333,3.01762,3313.9,3312.7,3.01866]
[1734964934556,3.01771,3313.8,3312.7,3.01866]
[1734964934762,3.01753,3314.0,3312.9,3.0185]
[1734964935084,3.01771,3313.8,3312.7,3.320536]
[1734964935233,0.8158,3314.5,3312.8,3.01858]
[1734964935435,3.01733,3314.2,3313.0,3.01836]
[1734964935637,179.9999955,3315.0,3313.1,0.03017414]
[1734964935837,3.01705,3314.5,3313.1,0.03017414]
[1734964936387,179.9999955,3315.0,3314.0,3.01749]
[1734964936571,179.9999955,3315.0,3314.3,3.01717]
[1734964936781,179.9999955,3315.0,3313.7,3.01777]
[1734964937081,179.9999955,3315.0,3314.5,3.01704]
[1734964937271,179.9999955,3315.0,3314.5,3.318744]
[1734964937437,179.9999955,3315.0,3314.5,0.301704]
[1734964937636,179.9999955,3315.0,3314.8,3.01673]
[1734964937869,179.9999955,3315.0,3314.5,0.301704]
[1734964938062,179.9999955,3315.0,3314.9,3.01668]
[1734964938267,179.9999955,3315.0,3314.1,0.61817213]
[1734964938465,179.9999955,3315.0,3313.4,3.0]
[1734964938666,183.0165855,3315.0,3313.7,0.61587477]
[1734964938883,179.9999955,3315.0,3314.0,3.01749]
[1734964939083,179.9999955,3315.0,3314.0,3.319239]
[1734964939291,3.01693,3314.7,3312.5,3.01878]
[1734964939434,177.76193791,3315.0,3313.8,3.01762]
[1734964939639,3.01671,3314.9,3313.5,0.6016991]
[1734964939938,177.76193791,3315.0,3313.9,3.01757]
[1734964940155,177.76193791,3315.0,3313.6,0.03016651]
[1734964940358,177.76193791,3315.0,3313.9,3.0]
[1734964940532,177.76193791,3315.0,3314.3,3.01716]
[1734964940740,177.76193791,3315.0,3314.7,3.01686]
[1734964941095,177.76193791,3315.0,3314.0,0.63193194]
[1734964941096,177.76193791,3315.0,3314.0,0.601768]
[1734964941236,3.0167,3314.9,3313.9,3.01758]
[1734964941436,3.0167,3314.9,3313.5,3.0]
[1734964941437,177.76193791,3315.0,3313.6,3.01786]
[1734964941638,180.77856791,3315.0,3313.5,3.01795]
[1734964941841,177.76193791,3315.0,3314.0,3.01748]
[1734964942083,177.76193791,3315.0,3314.4,3.01705]
[1734964942281,177.76193791,3315.0,3314.5,0.301705]
[1734964942486,177.76193791,3315.0,3314.5,3.301705]
[1734964942687,177.76193791,3315.0,3314.9,3.01668]
[1734964943343,177.76193791,3315.0,3314.9,3.63016172]
[1734964943685,177.76193791,3315.0,3314.7,3.01685]
[1734964943886,177.76193791,3315.0,3314.6,0.61106477]
[1734964944088,177.76193791,3315.0,3314.0,3.01741]
[1734964944259,177.76193791,3315.0,3314.0,3.0]
[1734964944454,177.76193791,3315.0,3314.0,3.31749]
[1734964944692,177.76193791,3315.0,3314.1,0.61833997]
[1734964944983,176.50306509,3315.0,3314.9,3.01668]
[1734964945687,176.50306509,3315.0,3314.4,3.108155]
[1734964945888,176.50306509,3315.0,3314.9,3.01668]
[1734964946290,176.50306509,3315.0,3314.9,0.59961338]
[1734964946589,176.50306509,3315.0,3313.2,3.01821]
[1734964946920,3.04694251,3314.9,3313.4,3.01796]
[1734964947055,0.03017251,3314.9,3313.4,3.01796]
[1734964947238,176.50306509,3315.0,3313.5,3.41167401]
[1734964947444,176.50306509,3315.0,3313.9,3.01756]
[1734964947647,176.50306509,3315.0,3313.5,0.39372401]
[1734964947860,176.50306509,3315.0,3313.5,0.03017254]
[1734964948295,3.01676,3314.9,3313.5,3.03016782]
[1734964948518,3.01676,3314.9,3313.8,3.01761]
[1734964949032,3.78608,3314.9,3313.3,0.61755466]
[1734964949182,176.50306509,3315.0,3312.6,3.01872]
[1734964949183,3.01777,3313.7,3312.6,3.01872]
[1734964949382,0.7694,3314.8,3312.7,0.33205046]
[1734964949599,3.78619,3314.8,3313.7,3.01774]
[1734964949806,176.50306509,3315.0,3314.0,3.01745]
[1734964950287,3.01669,3314.9,3313.8,3.01767]
[1734964950482,176.50306509,3315.0,3313.4,0.03016677]
[1734964950726,0.8278,3314.8,3313.0,3.01839]
[1734964950933,0.03017251,3314.7,3313.1,3.01831]
[1734964951223,3.01733,3314.2,3313.1,3.01831]
[1734964951531,3.01733,3314.2,3313.1,3.61532582]
[1734964951733,3.0175,3314.1,3313.1,0.59701582]
[1734964952381,3.01759,3314.0,3313.1,0.36154858]
[1734964952589,0.03017251,3314.2,3312.7,0.61768288]
[1734964952791,3.01792,3313.6,3312.5,3.01877]
[1734964953401,3.01741,3314.1,3312.6,0.03018018]
[1734964953929,3.01762,3313.9,3312.6,0.03018018]
[1734964954152,3.01721,3314.4,3312.9,3.01843]
[1734964954311,3.01721,3314.4,3313.0,0.301843]
[1734964954998,3.01746,3314.1,3313.0,3.320243]
[1734964955203,3.01754,3314.0,3313.0,0.301843]
[1734964955533,3.01695,3314.6,3312.6,0.61780379]
[1734964955741,0.7764,3313.8,3312.6,0.6479809]
[1734964955938,3.01804,3313.4,3312.3,1.23986768]
[1734964956237,3.01882,3312.6,3312.3,1.23986768]
[1734964956435,3.01795,3313.5,3312.3,1.23986768]
[1734964956623,3.01854,3312.9,3312.3,1.23986768]
[1734964956820,0.03017251,3313.2,3312.3,1.23986768]
[1734964957020,3.01864,3312.8,3312.3,1.23986768]
[1734964957226,3.01827,3313.2,3312.3,1.23986768]
[1734964957407,3.01882,3312.6,3312.3,1.23986768]
[1734964957608,3.01858,3312.9,3312.3,1.23986768]
[1734964957943,3.01895,3312.4,3312.3,1.23986768]
[1734964958252,3.01895,3312.4,3311.4,0.60643799]
[1734964958253,3.01877,3312.6,3311.2,1.23986768]
[1734964958392,3.01924,3312.1,3311.2,1.23986768]
[1734964958593,0.301895,3312.4,3311.2,1.23986768]
[1734964958594,3.01941,3311.9,3311.2,1.23986768]
[1734964958827,3.01996,3311.3,3311.2,1.23986768]
[1734964959625,3.02005,3311.2,3310.9,0.96958458]
[1734964959940,3.02078,3310.4,3310.1,3.8582759]
[1734964960310,0.7742,3311.1,3310.1,3.88848395]
[1734964960510,0.7742,3311.1,3310.1,3.8582759]
[1734964961395,3.04984251,3311.7,3308.7,3.108155]
[1734964961596,0.03017251,3311.7,3309.2,3.0]
[1734964961845,3.01968,3311.6,3309.9,3.02122]
[1734964961995,0.33515776,3311.5,3309.9,3.02122]
[1734964962191,3.01988,3311.4,3310.2,3.02094]
[1734964962429,3.01997,3311.3,3310.2,3.02094]
[1734964962625,0.03017251,3311.7,3309.8,0.60080021]
[1734964962626,3.02018,3311.1,3309.8,0.60080021]
[1734964962838,3.01965,3311.7,3309.8,0.63100337]
[1734964963005,0.7742,3311.8,3309.8,0.63100337]
[1734964963225,0.7742,3311.8,3310.0,3.02106]
[1734964963409,3.01963,3311.7,3310.3,0.07721506]
[1734964963604,0.03017251,3311.6,3310.3,0.0470174]
[1734964964056,3.02006,3311.2,3310.3,0.0470174]
[1734964964347,0.03017251,3311.7,3310.3,0.0470174]
[1734964964648,3.02031,3311.0,3310.3,0.0470174]
[1734964964851,0.03017251,3310.9,3310.3,0.0470174]
[1734964965019,3.02078,3310.4,3310.3,0.0470174]
[1734964965719,3.05095251,3310.4,3310.3,0.0470174]
[1734964965935,3.02078,3310.4,3310.3,0.0470174]
[1734964966658,3.32587525,3310.4,3310.3,0.0470174]
[1734964967118,3.02078,3310.4,3310.3,0.0470174]
[1734964968708,3.02078,3310.4,3310.3,7.4e-06]
[1734964968904,3.86005251,3310.4,3308.7,0.60995863]
[1734964969139,3.86005251,3310.4,3307.6,3.02327]
[1734964969140,3.02199,3309.1,3307.6,3.05349192]
[1734964969453,3.83033,3309.9,3307.4,0.15310004]
[1734964969454,0.03017251,3309.0,3307.8,3.0231]
[1734964969665,0.03017251,3309.8,3308.3,0.60675183]
[1734964969953,3.02206,3309.0,3308.3,0.60675183]
[1734964970253,0.03017251,3309.4,3308.3,0.60675183]
[1734964970463,3.02174,3309.4,3308.3,0.60675183]
[1734964970628,1.209576,3309.6,3308.3,3.60675183]
[1734964970832,0.8091,3310.6,3308.4,0.69316867]
[1734964971051,0.8091,3310.6,3308.7,3.02233]
[1734964971359,3.02073,3310.5,3309.4,3.02161]
[1734964971536,1.209158,3310.8,3309.3,0.60469463]
[1734964971736,1.209158,3310.8,3309.9,3.02121]
[1734964971907,0.8091,3310.5,3309.3,0.60469463]
[1734964972107,3.02104,3310.2,3309.4,0.04949869]
[1734964972336,3.02104,3310.2,3308.7,3.0]
[1734964972545,0.8091,3310.5,3309.1,0.61576719]
[1734964972855,3.02097,3310.2,3309.1,0.61576719]
[1734964973158,3.02105,3310.2,3309.2,3.02187]
[1734964973661,3.02105,3310.2,3309.3,0.04955139]
[1734964974466,0.302105,3310.2,3309.3,0.04955139]
[1734964974627,3.02148,3309.7,3308.6,0.60269363]
[1734964974961,3.02105,3310.2,3308.9,3.02206]
[1734964975259,3.02105,3310.2,3308.7,0.04986767]
[1734964975260,3.02104,3310.2,3308.7,0.04986767]
[1734964975462,3.021,3310.2,3309.0,0.04970952]
[1734964975650,0.8091,3310.5,3308.6,0.60269363]
[1734964975651,0.8091,3310.5,3308.8,0.08002926]
[1734964975852,1.209326,3310.9,3308.8,0.08002926]
[1734964975853,3.02061,3310.6,3309.4,3.02166]
[1734964976014,3.02061,3310.6,3309.5,3.0216]
[1734964976218,0.03017251,3310.5,3309.5,0.04944599]
[1734964976415,3.02099,3310.2,3309.5,0.04944599]
[1734964976726,3.0208,3310.4,3309.5,0.04944599]
[1734964977111,3.02093,3310.3,3309.5,0.04944599]
[1734964977310,3.02093,3310.3,3309.2,3.02178]
[1734964977513,3.02093,3310.3,3309.3,0.35172939]
[1734964977726,3.02093,3310.3,3309.3,0.950913]
[1734964977964,3.02093,3310.3,3309.3,3.972693]
[1734964978114,3.02069,3310.5,3309.3,3.972693]
[1734964978314,3.02128,3309.9,3309.3,0.648735]
[1734964978558,0.03017251,3309.8,3309.3,0.04955139]
[1734964978767,0.03017251,3310.2,3309.3,0.04955139]
[1734964978936,3.02133,3309.8,3308.6,3.02239]
[1734964979259,3.02162,3309.5,3308.7,0.9613878]
[1734964979565,1.099969,3310.4,3308.7,0.6591488]
[1734964979765,3.02145,3309.7,3308.7,0.6591488]
[1734964979963,3.02125,3309.9,3308.7,0.60928113]
[1734964980256,3.02125,3309.9,3308.9,3.02211]
[1734964980554,3.02155,3309.6,3309.0,0.04970952]
[1734964980708,3.108155,3310.0,3309.0,0.04970952]
[1734964980913,3.0216,3309.6,3308.5,3.0225]
[1734964981112,0.03017251,3309.5,3308.6,0.04992039]
[1734964981344,3.02202,3309.1,3308.6,0.04992039]
[1734964981561,0.771,3309.8,3308.2,0.61115733]
[1734964981711,0.7981,3310.3,3308.6,0.05652866]
[1734964981910,0.7981,3310.3,3308.2,0.61115733]
[1734964981911,3.02201,3309.1,3308.2,0.61115733]
[1734964982144,3.108155,3310.0,3307.9,3.02305]
[1734964982145,3.02182,3309.3,3308.3,0.04962077]
[1734964982439,3.108155,3310.0,3308.1,0.61170203]
[1734964982644,3.81904,3310.3,3308.8,3.02221]
[1734964982842,3.02105,3310.1,3308.6,3.02241]
[1734964983260,3.108155,3309.9,3308.6,0.04946258]
[1734964983428,3.02142,3309.7,3308.6,0.04946258]
[1734964983615,3.02165,3309.5,3308.4,3.02259]
[1734964983820,3.02119,3310.0,3308.6,0.04946258]
[1734964984128,0.381904,3310.2,3308.1,0.61170203]
[1734964984129,3.108155,3309.4,3308.1,0.61170203]
[1734964984423,0.33229151,3309.9,3305.7,1.24973657]
[1734964984424,3.02302,3308.0,3307.6,0.61230726]
[1734964984584,3.02302,3308.0,3306.7,0.005]
[1734964984585,0.03017251,3308.3,3306.7,0.005]
[1734964984784,0.03017251,3308.8,3307.0,3.1921668]
[1734964985283,0.8113,3308.3,3307.3,0.59563851]
[1734964985498,0.8113,3308.3,3307.0,0.1683068]
[1734964985499,3.108155,3307.9,3307.0,0.1683068]
[1734964985780,3.02379,3307.1,3307.0,0.1683068]
[1734964987276,3.108155,3307.4,3307.0,0.1683068]